bitfinex/quotes_ETHUSD_20240618
["timestamp","ask_amount","ask_price","bid_price","bid_amount"]
[1718740330506,0.6117427,3405.1,3404.8,2.93702]
[1718740330677,1.7262895,3405.4,3404.6,2.93712]
[1718740330678,0.6117427,3405.0,3404.6,2.93712]
[1718740331000,0.6117427,3405.0,3404.5,2.93728]
[1718740331196,0.91757784,3405.1,3404.3,2.9374]
[1718740331197,0.6117427,3404.8,3404.4,2.93737]
[1718740331496,0.6117427,3404.8,3403.9,2.93775]
[1718740331708,0.6117427,3404.6,3404.1,2.93762]
[1718740332002,0.6117427,3404.6,3404.1,2.93757]
[1718740332299,0.61434467,3404.5,3404.3,2.93745]
[1718740332812,0.61434467,3404.5,3404.4,5.87474]
[1718740332966,0.61434467,3404.5,3404.3,2.93745]
[1718740333302,0.91757784,3404.7,3404.0,2.93771]
[1718740333303,3.65235556,3404.4,3404.0,2.93771]
[1718740333503,0.92217683,3404.1,3404.0,2.93771]
[1718740333676,0.92217683,3404.1,3403.9,2.93779]
[1718740333885,0.61478201,3404.0,3403.8,2.84]
[1718740334079,0.92217683,3403.9,3403.6,2.93804]
[1718740334378,0.61506667,3403.8,3403.6,2.93804]
[1718740334593,0.61491997,3403.8,3403.7,5.87594]
[1718740334908,0.61491997,3403.9,3403.0,5.93857]
[1718740335210,0.61483449,3403.8,3403.7,2.93796]
[1718740335379,0.61483449,3403.8,3403.7,5.87593]
[1718740335576,0.61483449,3403.8,3403.7,2.93796]
[1718740336167,0.61483449,3403.8,3403.7,5.87593]
[1718740336403,0.92217683,3404.0,3403.8,2.93789]
[1718740336404,0.61483449,3404.0,3403.8,2.93789]
[1718740336704,0.61483449,3404.0,3403.9,2.9378]
[1718740337096,0.92217683,3404.1,3404.0,2.93772]
[1718740337405,0.92217683,3404.1,3403.8,2.93788]
[1718740337587,0.61464721,3403.9,3403.8,2.93788]
[1718740338167,0.61464721,3404.0,3403.8,2.93788]
[1718740338668,0.61464721,3404.0,3403.1,0.55]
[1718740338869,0.61464721,3403.9,3403.2,0.648857]
[1718740339102,0.61464721,3403.8,3403.0,5.93857]
[1718740339297,0.61464721,3403.4,3402.2,7.33]
[1718740339498,0.61464721,3403.4,3402.3,0.98118805]
[1718740339499,0.61464721,3403.1,3402.3,0.98118805]
[1718740339725,0.61464721,3403.1,3402.0,2.48188045]
[1718740339881,0.61464721,3403.1,3402.6,2.93887]
[1718740340083,0.61464721,3403.0,3402.9,2.93866]
[1718740340278,0.92217683,3403.1,3402.8,2.93867]
[1718740340279,0.61464721,3403.1,3403.0,2.9385]
[1718740340600,0.61464721,3403.2,3403.0,2.9385]
[1718740340802,0.61464721,3403.1,3403.0,2.9385]
[1718740341002,0.61464721,3403.1,3402.8,2.93874]
[1718740341202,0.61464721,3403.2,3402.8,2.93874]
[1718740341505,0.61464721,3403.1,3402.0,5.4307]
[1718740341709,1.22956911,3403.4,3402.1,1.06013575]
[1718740341710,0.61464721,3403.2,3402.1,1.06013575]
[1718740341911,0.61464721,3402.9,3401.8,2.93959]
[1718740342072,0.61464721,3402.8,3401.8,2.93959]
[1718740342275,0.61464721,3402.8,3401.6,2.84]
[1718740342508,0.61464721,3402.6,3401.6,2.84]
[1718740342695,0.61464721,3402.4,3401.6,2.84]
[1718740342895,0.61464721,3402.5,3401.6,3.36384]
[1718740344217,7.54105357,3402.6,3401.6,3.36384]
[1718740344504,6.92640636,3402.6,3401.6,3.36384]
[1718740345273,6.92640636,3402.6,3401.7,0.55]
[1718740345921,6.92640636,3402.6,3401.7,0.941384]
[1718740347333,6.92640636,3402.6,3401.7,0.55]
[1718740347476,6.92640636,3402.6,3401.6,0.55]
[1718740347674,6.92640636,3402.6,3401.7,0.04470133]
[1718740348590,6.92640636,3402.6,3401.4,0.55]
[1718740349224,6.92640636,3402.6,3400.5,2.819]
[1718740349225,2.93911,3402.4,3400.5,2.819]
[1718740349452,2.93911,3402.4,3400.4,5.2811]
[1718740349453,0.61464721,3402.3,3400.4,5.2811]
[1718740349587,0.61464721,3402.3,3400.7,0.37145724]
[1718740349794,3.55384721,3402.3,3400.4,5.2811]
[1718740350045,3.01144721,3402.2,3400.5,3.0]
[1718740350241,2.3968,3402.2,3400.5,3.0]
[1718740350539,2.3968,3402.2,3400.6,0.82811]
[1718740350762,2.3968,3402.2,3400.6,2.59911]
[1718740351046,6.92640636,3402.6,3401.3,4.2213]
[1718740351264,6.92640636,3402.6,3401.4,4.82977663]
[1718740351544,6.92640636,3403.0,3401.5,1.55990766]
[1718740352595,6.92640636,3403.0,3400.7,2.4673]
[1718740352798,6.92640636,3403.0,3400.8,0.058727]
[1718740352799,3.61464721,3402.9,3400.8,0.058727]
[1718740352994,2.93886,3402.7,3400.7,2.4673]
[1718740353205,7.06216208,3402.9,3400.8,0.52863]
[1718740353427,3.0,3402.9,3400.8,0.52863]
[1718740354648,6.92640636,3403.0,3400.9,2.321]
[1718740354937,6.92640636,3403.0,3401.1,2.819]
[1718740355150,6.92640636,3403.0,3401.2,3.55]
[1718740355295,6.92640636,3403.0,3401.3,0.6369]
[1718740355498,6.92640636,3403.0,3401.4,0.55]
[1718740356806,6.92640636,3403.0,3401.5,2.4673]
[1718740357115,6.92640636,3403.0,3401.6,0.55]
[1718740357500,6.92640636,3403.0,3401.6,3.55]
[1718740357818,6.92640636,3403.0,3401.7,2.67273]
[1718740357998,6.92640636,3403.0,3401.8,3.55]
[1718740358400,6.92640636,3403.0,3401.8,0.55]
[1718740359420,6.92640636,3403.0,3401.5,2.4673]
[1718740360514,6.92640636,3403.0,3402.0,2.93942]
[1718740360734,6.92640636,3403.0,3402.2,2.93925]
[1718740361248,6.92640636,3403.0,3402.4,2.9391]
[1718740361448,6.92640636,3403.0,3402.2,2.93925]
[1718740361815,6.92640636,3403.0,3402.3,2.9391]
[1718740362016,6.92640636,3403.0,3402.2,2.93925]
[1718740362213,6.92640636,3403.0,3402.0,2.93943]
[1718740362443,6.92640636,3403.0,3402.8,2.93873]
[1718740362734,6.92640636,3403.0,3402.1,0.843943]
[1718740362735,6.92640636,3403.0,3402.9,2.93866]
[1718740362959,8.04978631,3403.6,3403.0,2.93857]
[1718740363454,8.04978631,3403.6,3402.5,2.93899]
[1718740363655,0.61464721,3403.4,3402.6,2.93892]
[1718740363857,0.61464721,3403.4,3402.4,2.93907]
[1718740364155,0.61464721,3403.2,3402.4,2.93907]
[1718740364855,0.61464721,3403.2,3402.2,2.93924]
[1718740365055,0.61464721,3403.2,3402.3,0.55]
[1718740365218,0.61464721,3403.1,3402.3,0.55]
[1718740365423,0.61464721,3403.3,3402.4,2.93902]
[1718740365641,0.61464721,3403.1,3402.4,2.93902]
[1718740365834,0.61464721,3403.1,3402.3,3.4891]
[1718740366319,0.61464721,3403.1,3402.3,2.9391]
[1718740366538,0.92217683,3403.3,3401.4,1.771]
[1718740366539,0.61464721,3403.0,3401.4,1.771]
[1718740366830,0.61464721,3403.0,3401.6,1.25573]
[1718740367652,0.92217683,3403.2,3402.1,2.118]
[1718740367653,0.61464721,3403.2,3402.1,2.118]
[1718740367839,0.61464721,3403.2,3402.2,0.55]
[1718740368040,0.61464721,3403.3,3402.2,0.55]
[1718740368225,0.61464721,3403.1,3402.2,0.55]
[1718740368625,0.61464721,3403.0,3402.2,0.55]
[1718740369763,0.61464721,3402.9,3402.2,0.55]
[1718740370466,0.50873274,3403.3,3402.4,2.118]
[1718740370467,0.61464721,3403.3,3402.4,2.118]
[1718740370769,1.12337995,3403.5,3402.5,3.1355]
[1718740371070,7.54105357,3403.6,3402.5,3.1355]
[1718740371278,7.54105357,3403.6,3402.6,0.52535]
[1718740371445,7.54105357,3403.6,3402.7,0.55]
[1718740371832,0.61464721,3403.6,3402.7,0.55]
[1718740372037,0.61464721,3403.9,3402.7,0.55]
[1718740372273,0.61464721,3403.8,3402.8,2.71994117]
[1718740372572,0.61464721,3403.9,3402.9,0.55]
[1718740372745,1.12337995,3404.1,3403.0,0.38574683]
[1718740373068,0.61464721,3404.0,3403.1,0.55]
[1718740373370,7.84858319,3404.2,3403.2,0.05875546]
[1718740373371,0.61464721,3403.9,3403.2,0.05875546]
[1718740373573,0.61464721,3404.0,3403.3,0.60875373]
[1718740373778,0.61464721,3404.1,3403.3,0.05875373]
[1718740373980,0.61464721,3404.1,3403.5,2.2612]
[1718740374288,1.22956911,3404.4,3403.6,0.83699537]
[1718740374289,0.61464721,3404.4,3403.6,0.83699537]
[1718740374736,0.61464721,3404.4,3403.7,0.05738258]
[1718740374935,0.61464721,3404.4,3403.8,0.60738089]
[1718740375338,0.61464721,3404.3,3403.8,0.55]
[1718740375577,0.61464721,3404.3,3403.7,0.55]
[1718740375742,0.61464721,3404.4,3403.8,0.30981954]
[1718740375942,0.61464721,3404.4,3403.9,0.55]
[1718740377360,0.61464721,3404.3,3403.9,0.55]
[1718740377669,0.61464721,3404.2,3403.6,0.55]
[1718740377872,0.61464721,3404.2,3403.6,0.83112]
[1718740378170,0.61464721,3404.0,3403.0,2.63369412]
[1718740378358,0.61464721,3404.1,3403.8,2.93789]
[1718740378568,0.61464721,3404.2,3403.8,2.93789]
[1718740378739,0.61464721,3404.1,3403.8,2.93789]
[1718740379136,0.61464721,3404.1,3404.0,2.9377]
[1718740379377,0.92217683,3404.2,3404.0,2.9377]
[1718740379573,0.92217683,3404.2,3403.8,5.8757]
[1718740379574,0.61375628,3404.1,3403.8,5.8757]
[1718740379745,0.61375628,3404.1,3403.9,3.4878]
[1718740380155,0.61375628,3404.3,3404.0,2.93772]
[1718740380365,0.61375628,3404.3,3404.0,2.93771]
[1718740380668,0.92217683,3404.4,3404.0,2.93771]
[1718740380669,0.61375628,3404.2,3404.0,2.93771]
[1718740381075,0.61375628,3404.1,3403.9,0.55]
[1718740381260,0.61375628,3404.1,3403.3,2.93832]
[1718740381584,0.61375628,3404.1,3403.0,2.63369412]
[1718740381585,0.61375628,3403.8,3403.4,2.93816]
[1718740381753,0.61375628,3403.6,3403.4,2.93816]
[1718740382487,0.61375628,3403.5,3403.3,2.93831]
[1718740382638,0.61375628,3403.5,3403.2,3.78946341]
[1718740383177,0.61375628,3403.7,3403.3,3.48831]
[1718740383403,2.57025251,3404.5,3403.3,3.48831]
[1718740383404,0.61375628,3404.1,3404.0,5.87544]
[1718740383538,1.22956911,3404.4,3404.0,5.87544]
[1718740383539,0.61375628,3404.4,3404.3,8.81238]
[1718740383745,0.61375628,3404.6,3404.5,5.87456]
[1718740383975,0.92217683,3404.8,3404.7,2.93711]
[1718740384174,0.92217683,3404.9,3404.8,2.93703]
[1718740384354,0.61355578,3404.9,3404.8,5.87406]
[1718740384743,0.61355578,3405.0,3404.8,1.137406]
[1718740384954,7.84858319,3405.2,3404.9,0.55]
[1718740384955,0.61355578,3405.1,3404.9,0.55]
[1718740385181,0.61355578,3405.3,3404.9,0.55]
[1718740385579,0.61355578,3405.4,3404.9,0.55]
[1718740385786,0.61355578,3405.4,3404.0,2.2871]
[1718740385787,0.61355578,3405.1,3404.0,2.2871]
[1718740386091,0.61355578,3404.8,3404.1,1.06091]
[1718740386257,0.61355578,3404.8,3403.5,2.3536]
[1718740386598,0.61355578,3404.6,3403.5,2.3536]
[1718740386746,0.61355578,3404.5,3403.5,5.3536]
[1718740387148,0.61355578,3404.5,3403.5,2.3536]
[1718740387344,0.61355578,3404.5,3402.9,2.4722]
[1718740387345,0.61355578,3404.2,3402.9,2.4722]
[1718740387563,1.22956911,3404.5,3402.9,2.4722]
[1718740387564,0.61355578,3404.1,3402.9,2.4722]
[1718740387755,0.61355578,3404.1,3402.9,4.2432]
[1718740387955,0.61355578,3404.1,3403.0,4.31892]
[1718740388150,0.61355578,3404.0,3403.0,4.31892]
[1718740388676,1.53295602,3404.5,3403.0,4.31892]
[1718740388677,0.61355578,3404.1,3403.0,4.31892]
[1718740388979,0.61355578,3404.1,3403.1,0.57878762]
[1718740389178,0.61355578,3404.1,3403.2,0.0587508]
[1718740389367,0.61355578,3404.1,3403.3,1.10151799]
[1718740389673,0.61355578,3404.1,3403.4,0.55]
[1718740389884,0.61355578,3404.1,3403.5,0.05874745]
[1718740390042,0.61355578,3404.1,3404.0,2.93772]
[1718740390245,0.61355578,3404.4,3403.5,2.93806]
[1718740390570,0.61355578,3404.4,3403.6,0.55]
[1718740390771,0.61355578,3403.9,3403.2,2.93836]
[1718740390963,0.61355578,3403.8,3403.2,2.93836]
[1718740391294,1.22956911,3404.2,3402.7,5.7788]
[1718740391295,0.61355578,3403.6,3402.7,5.7788]
[1718740391586,0.61355578,3403.6,3403.2,2.93833]
[1718740391806,0.61355578,3403.5,3402.7,7.232733]
[1718740391963,0.61355578,3403.4,3402.8,2.93874]
[1718740392494,0.61355578,3403.4,3403.1,2.93842]
[1718740392797,0.61355578,3403.6,3403.1,2.93842]
[1718740393157,0.61355578,3403.6,3402.7,7.232783]
[1718740393351,0.61355578,3403.6,3402.8,0.55]
[1718740393653,0.61355578,3403.4,3402.8,0.55]
[1718740393861,0.61355578,3403.3,3402.8,0.55]
[1718740394210,0.61355578,3403.3,3402.7,2.84]
[1718740394404,0.61355578,3403.0,3402.7,2.84]
[1718740394566,0.61355578,3402.9,3401.9,2.822]
[1718740394774,0.61355578,3402.9,3401.7,3.0]
[1718740394775,0.61355578,3402.8,3402.0,0.2822]
[1718740395249,0.61355578,3402.7,3401.5,2.4372]
[1718740395453,0.61355578,3402.6,3401.5,5.4372]
[1718740395847,0.61355578,3402.6,3402.1,2.93927]
[1718740396047,0.61355578,3402.7,3402.2,2.93927]
[1718740396287,0.92217683,3402.9,3402.3,2.93911]
[1718740396288,0.61355578,3402.6,3402.3,2.93911]
[1718740396501,0.61355578,3402.6,3402.4,2.93903]
[1718740396810,0.61355578,3402.7,3402.6,2.93892]
[1718740397012,1.22956911,3403.0,3402.5,2.93899]
[1718740397013,0.61355578,3402.8,3402.5,2.93899]
[1718740399375,0.61364344,3403.5,3402.8,0.55]
[1718740399693,0.61364344,3403.6,3402.8,2.37976018]
[1718740399854,0.92217683,3403.8,3403.0,1.771]
[1718740399855,0.61364344,3403.8,3403.0,1.771]
[1718740400051,0.61364344,3403.8,3403.1,0.55]
[1718740400255,6.92640636,3403.9,3403.2,0.5409636]
[1718740400256,7.5400498,3403.9,3403.2,0.5409636]
[1718740400557,0.61364344,3403.8,3403.3,0.55]
[1718740400866,0.61364344,3403.7,3403.3,0.55]
[1718740401052,0.61364344,3403.7,3403.3,0.83619636]
[1718740401656,0.61364344,3403.8,3403.3,0.83619636]
[1718740402299,0.61364344,3403.7,3403.3,0.83619636]
[1718740402475,0.92217683,3403.8,3403.3,0.83619636]
[1718740402476,0.61364344,3403.8,3403.3,0.83619636]
[1718740402675,0.61364344,3403.7,3403.3,0.83619636]
[1718740402998,0.61364344,3403.6,3403.3,0.55]
[1718740403177,0.61364344,3403.5,3403.3,0.55]
[1718740403698,0.61364344,3403.5,3402.5,2.316]
[1718740403896,0.61364344,3403.0,3402.6,0.2316]
[1718740404477,0.92217683,3403.2,3402.6,0.2316]
[1718740404478,0.61364344,3402.9,3402.6,0.2316]
[1718740405015,0.61364344,3403.1,3402.6,0.2316]
[1718740405188,0.61364344,3403.1,3402.7,0.25476]
[1718740405876,0.61364344,3403.1,3402.8,0.55]
[1718740406684,0.61364344,3403.2,3402.8,0.55]
[1718740406897,0.61364344,3403.1,3402.8,0.55]
[1718740407401,0.61364344,3403.2,3402.8,0.55]
[1718740407606,0.61364344,3403.4,3402.8,0.55]
[1718740407812,0.61364344,3403.7,3402.9,5.150576]
[1718740408135,0.61364344,3403.9,3403.8,8.81367]
[1718740408452,0.61364344,3403.9,3403.8,0.55]
[1718740408585,0.92217683,3404.0,3403.8,0.55]
[1718740408788,0.92217683,3404.0,3403.9,2.9378]
[1718740408995,0.92217683,3404.3,3404.2,2.93754]
[1718740409796,0.92217683,3404.3,3404.0,2.93766]
[1718740410014,0.92217683,3404.2,3404.1,0.55]
[1718740410215,1.22956911,3404.3,3404.1,0.55]
[1718740410430,1.53494705,3404.3,3403.1,2.93844]
[1718740410649,0.61425704,3403.5,3403.1,2.93847]
[1718740410935,0.61425704,3403.3,3403.1,2.93847]
[1718740411228,0.61425704,3403.3,3403.2,5.87682]
[1718740411443,0.92138557,3403.5,3403.4,2.93823]
[1718740411444,0.61425704,3403.5,3403.4,2.93823]
[1718740411785,0.92138557,3403.6,3403.4,2.93823]
[1718740412330,0.92138557,3403.6,3403.5,3.48815]
[1718740412730,0.92138557,3403.6,3403.5,6.4263]
[1718740413060,0.92138557,3403.7,3403.5,4.424593]
[1718740413389,1.22851409,3403.8,3403.6,2.93806]
[1718740413650,1.22851409,3403.8,3403.7,3.48797]
[1718740413949,0.9218834,3403.8,3403.5,1.486453]
[1718740414126,0.61459919,3403.6,3403.5,3.48814]
[1718740414291,0.92189879,3403.7,3403.5,0.55]
[1718740414487,1.22851409,3403.8,3403.6,0.348814]
[1718740414693,1.22851409,3403.9,3403.7,0.55]
[1718740414998,0.92200466,3403.8,3403.7,0.55]
[1718740415227,1.22851409,3403.9,3403.7,0.55]
[1718740415601,1.22851409,3403.9,3403.7,3.48797]
[1718740415602,0.9221998,3403.8,3403.7,3.48797]
[1718740415910,0.9221998,3403.9,3403.7,1.192615]
[1718740416115,0.9221998,3403.8,3403.7,0.55]
[1718740416436,0.92245738,3403.8,3403.6,3.48799]
[1718740416813,0.92245738,3403.7,3403.6,0.55]
[1718740417112,0.92245738,3403.7,3403.6,3.48806]
[1718740417308,0.92245738,3403.7,3403.6,4.365729]
[1718740417915,0.92245738,3403.7,3403.6,7.303789]
[1718740418113,0.92245738,3403.8,3403.7,2.93797]
[1718740418315,0.92245738,3403.9,3403.8,2.93789]
[1718740418595,0.92245738,3403.9,3403.8,3.48789]
[1718740418924,1.22851409,3404.0,3403.8,3.48789]
[1718740419126,1.22851409,3404.0,3403.9,0.55]
[1718740419915,1.22851409,3404.0,3403.9,4.08728338]
[1718740420135,1.5369397,3404.2,3404.0,2.93772]
[1718740420308,0.92237846,3404.1,3404.0,2.93772]
[1718740420504,0.92237846,3404.1,3404.0,0.55]
[1718740420717,1.22995527,3404.2,3404.0,0.95873734]
[1718740421033,1.22995527,3404.2,3403.9,3.53727338]
[1718740421034,1.5369397,3404.3,3404.1,0.55]
[1718740421536,1.5369397,3404.2,3404.0,0.55]
[1718740421864,1.5369397,3404.2,3403.7,0.55]
[1718740422042,0.92247248,3403.8,3403.7,0.29005]
[1718740422337,0.92247248,3403.8,3403.7,0.84005]
[1718740422541,0.92247248,3403.8,3403.7,0.55]
[1718740422712,1.22996331,3403.9,3403.4,3.48817]
[1718740422909,0.61502476,3403.5,3403.4,3.48817]
[1718740423344,0.61502476,3403.6,3403.5,2.93815]
[1718740423517,0.61502476,3403.7,3403.6,2.93806]
[1718740423712,0.61501147,3403.7,3403.6,3.48806]
[1718740423940,0.92253714,3403.8,3403.6,3.48806]
[1718740424137,0.92253714,3403.7,3403.6,3.48806]
[1718740424416,0.92253714,3403.8,3403.7,2.93797]
[1718740424617,0.92253714,3403.8,3403.7,3.48797]
[1718740425027,0.92253714,3403.9,3403.8,2.93789]
[1718740425246,0.92253714,3403.9,3403.8,10.4031453]
[1718740425455,0.61495441,3403.9,3403.8,10.4031453]
[1718740426176,0.61495441,3403.9,3403.8,7.4652553]
[1718740426477,0.92253714,3404.0,3403.9,2.9378]
[1718740426626,0.92253714,3404.1,3403.9,4.91631853]
[1718740426976,0.92253714,3404.1,3404.0,6.42544]
[1718740427322,0.92253714,3404.2,3404.1,5.87526]
[1718740427523,0.92253714,3404.3,3404.2,2.93754]
[1718740427724,0.92226536,3404.4,3404.3,2.93746]
[1718740427929,0.92226536,3404.6,3404.4,2.93737]
[1718740428124,0.61480789,3404.8,3404.6,2.9372]
[1718740428426,0.61459605,3404.8,3404.7,6.42422]
[1718740428624,0.61459605,3404.8,3404.7,7.454842]
[1718740428825,0.92226536,3404.9,3404.8,2.93703]
[1718740429122,0.92226536,3405.0,3404.9,5.87388]
[1718740429329,0.92226536,3405.0,3404.9,0.55]
[1718740429521,0.92226536,3405.0,3404.9,3.9936332]
[1718740429747,0.92226536,3405.0,3404.9,11.5176732]
[1718740429933,0.25381246,3405.9,3404.9,11.5176732]
[1718740429934,0.61442687,3405.1,3405.0,8.81055]
[1718740430261,1.53740293,3405.6,3405.3,5.87318]
[1718740430262,0.61436943,3405.4,3405.3,5.87318]
[1718740430433,0.61436943,3405.4,3405.3,6.42318]
[1718740430639,0.92226536,3405.5,3405.4,5.87302]
[1718740430640,0.61436943,3405.5,3405.4,5.87302]
[1718740430849,0.61436943,3405.6,3405.5,2.93642]
[1718740431048,0.92226536,3405.7,3405.6,2.93634]
[1718740431263,0.92226536,3405.8,3405.7,2.93625]
[1718740431476,0.92226536,3405.8,3405.7,3.48625]
[1718740432275,0.92226536,3405.9,3405.7,3.48625]
[1718740432584,0.92226536,3406.0,3405.8,3.48616]
[1718740432724,0.92226536,3406.0,3405.9,2.93608]
[1718740432923,0.61363865,3406.0,3405.9,0.55]
[1718740433669,0.61363865,3406.1,3405.8,3.48613]
[1718740433963,1.22996331,3406.4,3405.9,2.93607]
[1718740433964,0.61363865,3406.0,3405.9,2.93607]
[1718740434124,0.61363865,3406.2,3406.0,2.93599]
[1718740434326,0.61363865,3406.2,3406.1,2.9359]
[1718740434561,0.61363865,3406.2,3406.1,3.4859]
[1718740434740,0.61363865,3406.4,3406.1,3.4859]
[1718740434927,0.61363865,3406.4,3406.3,2.93573]
[1718740435125,0.61363865,3406.6,3406.3,0.55]
[1718740435325,0.61363865,3406.6,3406.2,0.55]
[1718740435686,0.61363865,3406.6,3406.3,2.93572]
[1718740435867,0.61363865,3406.6,3406.4,0.55]
[1718740436025,0.61363865,3406.9,3406.6,2.93546]
[1718740436231,0.61363865,3407.1,3406.7,0.55]
[1718740436429,1.22996331,3407.4,3406.7,3.48536]
[1718740436430,0.61363865,3407.3,3406.7,3.48536]
[1718740436632,0.61363865,3407.4,3406.8,2.93525]
[1718740436894,0.61363865,3407.5,3406.9,0.55]
[1718740437030,0.61363865,3407.3,3406.9,0.55]
[1718740437528,7.54004501,3407.7,3406.8,3.0378]
[1718740437726,0.92226536,3407.8,3407.1,2.93503]
[1718740437727,0.61363865,3407.8,3407.1,2.93503]
[1718740437925,0.61363865,3407.8,3407.2,0.55]
[1718740438222,0.61363865,3408.0,3407.2,0.55]
[1718740438387,0.61363865,3408.2,3407.3,2.993536]
[1718740438722,0.61363865,3408.1,3407.4,0.5971064]
[1718740438941,0.61363865,3408.2,3407.4,0.5971064]
[1718740439211,8.15636967,3408.5,3407.4,0.5971064]
[1718740439212,7.54004501,3408.5,3407.4,0.5971064]
[1718740439427,0.61363865,3408.7,3407.9,2.93435]
[1718740439640,3.25196536,3408.9,3407.6,2.93461]
[1718740439641,0.61363865,3408.8,3408.0,3.53138618]
[1718740439918,0.61363865,3408.8,3408.0,0.55]
[1718740440083,0.61363865,3408.8,3407.6,5.2657006]
[1718740440084,0.61363865,3408.8,3407.7,3.48445]
[1718740440271,0.61363865,3408.9,3407.8,2.3841]
[1718740440616,0.61363865,3408.9,3408.1,2.93417]
[1718740440835,0.61363865,3409.2,3408.2,0.55]
[1718740441123,6.92640636,3409.3,3408.3,2.934]
[1718740441274,6.92640636,3409.3,3408.4,0.55]
[1718740441678,6.92640636,3409.3,3408.4,2.93392]
[1718740442036,6.92640636,3409.3,3408.3,0.55]
[1718740442037,5.2626,3409.6,3408.5,3.48384]
[1718740442330,1.22996331,3410.0,3408.5,3.48384]
[1718740442331,9.25610636,3410.1,3408.9,2.93342]
[1718740442475,9.25610636,3410.1,3409.0,3.48332]
[1718740442675,12.18859636,3410.1,3409.0,0.55]
[1718740442915,9.25610636,3410.1,3409.0,0.55]
[1718740443118,9.25610636,3410.1,3408.8,0.55]
[1718740443119,2.93264,3409.9,3408.8,0.55]
[1718740443273,2.93255,3410.0,3408.8,0.55]
[1718740443472,2.93255,3410.0,3408.7,0.55]
[1718740443781,2.93255,3410.0,3408.9,2.93349]
[1718740443996,12.18857636,3410.1,3409.0,0.55]
[1718740444329,2.93256,3410.0,3409.0,0.55]
[1718740444512,12.18857636,3410.1,3408.8,0.55]
[1718740444881,9.25610636,3410.1,3408.8,0.55]
[1718740445126,12.18862636,3410.1,3408.8,0.55]
[1718740445308,9.25610636,3410.1,3408.7,3.48365]
[1718740445614,2.3297,3410.1,3408.8,1.766]
[1718740445824,9.19400636,3410.6,3408.9,2.33572575]
[1718740446019,2.93228,3410.4,3409.0,2.9334]
[1718740446221,2.93213,3410.5,3409.1,3.48332]
[1718740446579,2.9323,3410.3,3409.1,3.48332]
[1718740446779,2.93246,3410.1,3409.1,0.55]
[1718740447133,2.93245,3410.2,3409.1,0.55]
[1718740447420,2.2676,3410.6,3409.3,2.93307]
[1718740447640,2.2676,3410.6,3409.4,0.55]
[1718740447857,5.32823,3411.3,3410.1,2.93244]
[1718740447984,5.32823,3411.3,3410.2,3.48234]
[1718740448334,2.3968,3411.3,3410.2,0.55]
[1718740448475,2.93159,3411.2,3409.9,0.55]
[1718740448681,2.93159,3411.2,3410.1,2.93243]
[1718740448985,2.3968,3411.3,3410.2,0.55]
[1718740449456,2.3968,3411.3,3410.2,2.93236]
[1718740449718,2.3968,3411.3,3409.9,3.48263]
[1718740449719,2.9316,3411.1,3410.3,0.55]
[1718740449906,2.9317,3411.0,3410.3,0.55]
[1718740450239,2.3968,3411.3,3410.1,0.55]
[1718740450375,5.32826,3411.3,3410.2,2.93229]
[1718740450574,2.93152,3411.2,3410.3,0.55]
[1718740450803,2.93152,3411.2,3410.1,3.48245]
[1718740451017,5.32823,3411.3,3410.1,0.55]
[1718740451221,2.93186,3410.8,3410.0,0.55]
[1718740451420,2.93185,3410.9,3409.9,0.55]
[1718740451629,2.3968,3411.3,3409.5,2.2666]
[1718740451784,2.93219,3410.5,3409.4,3.0]
[1718740451987,2.3968,3411.3,3409.4,3.0]
[1718740451988,6.92640636,3411.0,3410.1,2.93238]
[1718740452303,2.93162,3411.1,3409.8,2.93271]
[1718740452687,5.32823,3411.3,3410.1,2.93245]
[1718740452909,5.32823,3411.3,3410.2,2.93235]
[1718740452910,2.3968,3411.3,3410.2,2.93235]
[1718740453106,2.93179,3410.9,3410.2,0.55]
[1718740453485,2.93152,3411.2,3410.2,0.55]
[1718740453682,2.3968,3411.3,3410.1,0.55]
[1718740453986,5.32825,3411.3,3410.1,3.48245]
[1718740454519,2.3968,3411.3,3410.1,0.55]
[1718740454681,2.93178,3410.9,3409.9,0.55]
[1718740454886,2.93228,3410.4,3409.2,4.766]
[1718740455100,2.3968,3411.3,3409.2,4.766]
[1718740455317,2.93205,3410.6,3409.3,2.93314]
[1718740455504,9.85802636,3411.1,3409.5,2.93296]
[1718740455683,6.92640636,3411.1,3409.4,3.0]
[1718740455883,2.93203,3410.6,3409.3,7.510399]
[1718740456118,2.93221,3410.4,3409.3,3.0]
[1718740456418,2.93211,3410.6,3409.4,0.55]
[1718740456580,2.93218,3410.5,3409.4,0.55]
[1718740456787,2.93204,3410.6,3409.5,2.93297]
[1718740457020,9.85803636,3411.1,3409.6,0.55]
[1718740457218,2.93175,3411.0,3409.6,0.55]
[1718740457405,6.92640636,3411.1,3409.4,0.55]
[1718740457606,2.93179,3410.9,3409.4,2.2976]
[1718740457807,2.93186,3410.8,3409.7,2.93279]
[1718740458020,2.93186,3410.8,3409.8,0.55]
[1718740458591,2.93178,3410.9,3409.8,3.4827]
[1718740459015,2.93177,3411.0,3409.8,0.55]
[1718740459211,6.92640636,3411.1,3410.0,2.93251]
[1718740459414,2.3968,3411.3,3410.1,0.55]
[1718740459612,2.93131,3411.5,3410.1,0.55]
[1718740459809,9.85759636,3411.6,3410.5,2.93211]
[1718740460101,6.92640636,3411.6,3410.6,0.55]
[1718740460406,2.93127,3411.5,3410.6,0.55]
[1718740460615,2.93127,3411.5,3410.4,0.55]
[1718740460950,2.93135,3411.4,3410.4,0.55]
[1718740461094,2.9321,3410.6,3409.4,2.3601]
[1718740461294,2.93204,3410.6,3409.4,2.3601]
[1718740461531,2.93212,3410.5,3409.4,2.3601]
[1718740461705,2.93203,3410.6,3409.5,2.93296]
[1718740462019,2.93221,3410.4,3409.4,2.3601]
[1718740462226,2.93221,3410.4,3409.3,3.0]
[1718740462227,2.93244,3410.2,3409.2,2.84]
[1718740462405,2.93246,3410.1,3409.2,2.84]
[1718740462612,2.93256,3410.0,3409.2,2.84]